[Event "*** Titled Tuesday Blitz"]
[Site "Chess.com"]
[Date "2020.05.12"]
[Round "5"]
[White "Andreikka"]
[Black "Gordima"]
[Result "1-0"]
[WhiteElo "2947"]
[BlackElo "2770"]
[TimeControl "180+1"]
[EndTime "10:55:33 PDT"]
[Termination "Andreikka won on time"]

1. c4 {[%clk 0:03:00.9]} 1... e6 {[%clk 0:02:59.7]} 2. Nc3 {[%clk 0:03:00.6]}
2... d5 {[%clk 0:03:00.4]} 3. d4 {[%clk 0:03:00.3]} 3... Bb4 {[%clk 0:03:01]} 4.
a3 {[%clk 0:02:55.5]} 4... Bxc3+ {[%clk 0:03:00.5]} 5. bxc3 {[%clk 0:02:56.4]}
5... Nf6 {[%clk 0:03:00.5]} 6. e3 {[%clk 0:02:56.1]} 6... c6 {[%clk 0:03:00.4]}
7. cxd5 {[%clk 0:02:53.1]} 7... cxd5 {[%clk 0:03:00.4]} 8. Nf3 {[%clk
0:02:53.3]} 8... b6 {[%clk 0:02:57.9]} 9. Bd3 {[%clk 0:02:46.1]} 9... O-O {[%clk
0:02:57.5]} 10. Qe2 {[%clk 0:02:46.3]} 10... Nc6 {[%clk 0:02:51.6]} 11. O-O
{[%clk 0:02:41.7]} 11... Ne4 {[%clk 0:02:51.8]} 12. Qc2 {[%clk 0:02:21.7]} 12...
f5 {[%clk 0:02:42.6]} 13. a4 {[%clk 0:02:12.3]} 13... Bb7 {[%clk 0:02:38.7]} 14.
Ba3 {[%clk 0:02:11.2]} 14... Rf7 {[%clk 0:02:38.8]} 15. Rfc1 {[%clk 0:01:58.2]}
15... Rc8 {[%clk 0:02:30.6]} 16. c4 {[%clk 0:01:43]} 16... Rfc7 {[%clk 0:02:22]}
17. c5 {[%clk 0:01:27.3]} 17... bxc5 {[%clk 0:02:18.5]} 18. dxc5 {[%clk
0:01:27.7]} 18... a5 {[%clk 0:02:09.2]} 19. Nd4 {[%clk 0:01:28.1]} 19... Re7
{[%clk 0:01:02.3]} 20. Rab1 {[%clk 0:01:08.1]} 20... Ba8 {[%clk 0:00:39.3]} 21.
Ba6 {[%clk 0:00:35.3]} 21... Rb8 {[%clk 0:00:33.6]} 22. Rxb8 {[%clk 0:00:33.8]}
22... Qxb8 {[%clk 0:00:31.2]} 23. Bb5 {[%clk 0:00:30.3]} 23... Qc7 {[%clk
0:00:17.5]} 24. f3 {[%clk 0:00:29.9]} 24... Nf6 {[%clk 0:00:17.2]} 25. Qf2
{[%clk 0:00:29]} 25... f4 {[%clk 0:00:09.3]} 26. Bb2 {[%clk 0:00:21.6]} 26... e5
{[%clk 0:00:03.6]} 27. Nf5 {[%clk 0:00:20.8]} 27... fxe3 {[%clk 0:00:03.2]} 28.
Qxe3 {[%clk 0:00:20.5]} 28... Re6 {[%clk 0:00:02.2]} 29. Nd6 {[%clk 0:00:20.9]}
29... d4 {[%clk 0:00:01.9]} 30. Qb3 {[%clk 0:00:20.1]} 30... Qe7 {[%clk
0:00:01.1]} 31. Bc4 {[%clk 0:00:19.4]} 31... Nd8 {[%clk 0:00:01.5]} 32. Bxe6+
{[%clk 0:00:13.8]} 32... Qxe6 {[%clk 0:00:02]} 33. Qb8 {[%clk 0:00:12.7]} 33...
Qd5 {[%clk 0:00:01.9]} 34. Qxd8+ {[%clk 0:00:12.2]} 1-0

[Event "*** Titled Tuesday Blitz"]
[Site "Chess.com"]
[Date "2020.05.12"]
[Round "5"]
[White "x-5963514717"]
[Black "moro182"]
[Result "0-1"]
[WhiteElo "2474"]
[BlackElo "2671"]
[TimeControl "180+1"]
[EndTime "10:55:34 PDT"]
[Termination "moro182 won on time"]

1. Nf3 {[%clk 0:03:00.9]} 1... d5 {[%clk 0:02:59.7]} 2. g3 {[%clk 0:02:55.6]}
2... Nf6 {[%clk 0:02:59.4]} 3. Bg2 {[%clk 0:02:55.5]} 3... c5 {[%clk 0:02:59.9]}
4. O-O {[%clk 0:02:54.9]} 4... e6 {[%clk 0:02:57.8]} 5. d4 {[%clk 0:02:54.6]}
5... Nc6 {[%clk 0:02:55.5]} 6. c4 {[%clk 0:02:54.4]} 6... dxc4 {[%clk
0:02:55.7]} 7. Ne5 {[%clk 0:02:50.5]} 7... Bd7 {[%clk 0:02:31.6]} 8. Na3 {[%clk
0:02:49.5]} 8... cxd4 {[%clk 0:02:30]} 9. Naxc4 {[%clk 0:02:49]} 9... Be7 {[%clk
0:02:26.8]} 10. Qb3 {[%clk 0:02:47.6]} 10... Qc7 {[%clk 0:02:22.2]} 11. Bf4
{[%clk 0:02:41.1]} 11... Nh5 {[%clk 0:02:22.5]} 12. Bxc6 {[%clk 0:02:16.5]}
12... Bxc6 {[%clk 0:02:21.9]} 13. Nxc6 {[%clk 0:02:15.9]} 13... Nxf4 {[%clk
0:02:20.5]} 14. Nxe7 {[%clk 0:02:10.1]} 14... Nxe2+ {[%clk 0:02:08.8]} 15. Kg2
{[%clk 0:02:06.4]} 15... Kxe7 {[%clk 0:02:05.1]} 16. Rae1 {[%clk 0:01:52.9]}
16... Rhc8 {[%clk 0:01:59.5]} 17. Qb4+ {[%clk 0:01:48.2]} 17... Qc5 {[%clk
0:01:52.9]} 18. Qxb7+ {[%clk 0:01:47.7]} 18... Kf8 {[%clk 0:01:52.5]} 19. b3
{[%clk 0:01:27.2]} 19... Nc3 {[%clk 0:01:44.7]} 20. Re5 {[%clk 0:01:05.4]} 20...
Qc6+ {[%clk 0:01:38.9]} 21. Qxc6 {[%clk 0:01:04.2]} 21... Rxc6 {[%clk
0:01:39.8]} 22. a4 {[%clk 0:00:56.9]} 22... Rd8 {[%clk 0:01:37]} 23. Rc1 {[%clk
0:00:55.5]} 23... f6 {[%clk 0:01:17]} 24. Ra5 {[%clk 0:00:54.8]} 24... Rc7
{[%clk 0:01:17.3]} 25. f4 {[%clk 0:00:50.2]} 25... d3 {[%clk 0:01:13.3]} 26. Nd2
{[%clk 0:00:50.4]} 26... Rdc8 {[%clk 0:01:05.4]} 27. Kf3 {[%clk 0:00:48.8]}
27... f5 {[%clk 0:00:51.7]} 28. Re1 {[%clk 0:00:37.5]} 28... Kf7 {[%clk
0:00:43.1]} 29. Nc4 {[%clk 0:00:37.6]} 29... Rd8 {[%clk 0:00:39]} 30. Ke3 {[%clk
0:00:25.9]} 30... Rb7 {[%clk 0:00:23.6]} 31. Ra6 {[%clk 0:00:11.2]} 31... Rxb3
{[%clk 0:00:20.8]} 32. Rxa7+ {[%clk 0:00:10.7]} 32... Kg8 {[%clk 0:00:20.6]} 33.
Ne5 {[%clk 0:00:09.5]} 33... d2 {[%clk 0:00:19.5]} 34. Ra1 {[%clk 0:00:03.6]}
34... Nb1+ {[%clk 0:00:18.2]} 35. Kf2 {[%clk 0:00:01.8]} 35... d1=Q {[%clk
0:00:17.8]} 0-1

[Event "*** Titled Tuesday Blitz"]
[Site "Chess.com"]
[Date "2020.05.12"]
[Round "5"]
[White "PauloCesarCosta_sad"]
[Black "CroissantNeuf"]
[Result "0-1"]
[WhiteElo "2188"]
[BlackElo "2358"]
[TimeControl "180+1"]
[EndTime "10:55:35 PDT"]
[Termination "CroissantNeuf won on time"]

1. Nf3 {[%clk 0:03:00.9]} 1... Nf6 {[%clk 0:02:59]} 2. c4 {[%clk 0:03:00.6]}
2... e6 {[%clk 0:02:56.1]} 3. d4 {[%clk 0:03:00.2]} 3... c5 {[%clk 0:02:54.9]}
4. e3 {[%clk 0:02:56.9]} 4... d5 {[%clk 0:02:51.1]} 5. cxd5 {[%clk 0:02:56.4]}
5... exd5 {[%clk 0:02:44.8]} 6. Nc3 {[%clk 0:02:55.2]} 6... a6 {[%clk
0:02:40.3]} 7. Bd3 {[%clk 0:02:43.5]} 7... Nc6 {[%clk 0:02:39]} 8. O-O {[%clk
0:02:39.6]} 8... Bg4 {[%clk 0:02:36.6]} 9. dxc5 {[%clk 0:02:25]} 9... Bxc5
{[%clk 0:02:35.4]} 10. a3 {[%clk 0:02:25.3]} 10... O-O {[%clk 0:02:33.5]} 11. b4
{[%clk 0:02:24.6]} 11... Ba7 {[%clk 0:02:33.4]} 12. h3 {[%clk 0:02:20.2]} 12...
Bh5 {[%clk 0:02:30.1]} 13. Be2 {[%clk 0:02:15.1]} 13... Rc8 {[%clk 0:02:14.8]}
14. Bb2 {[%clk 0:02:14.1]} 14... Bb8 {[%clk 0:02:06.6]} 15. Nd4 {[%clk 0:01:44]}
15... Qd6 {[%clk 0:02:01.7]} 16. g3 {[%clk 0:01:31.9]} 16... Bg6 {[%clk
0:01:23.5]} 17. Bf3 {[%clk 0:01:19.6]} 17... Ne5 {[%clk 0:01:15.4]} 18. Bg2
{[%clk 0:01:13.4]} 18... Nc4 {[%clk 0:01:14.1]} 19. Qe2 {[%clk 0:00:51.6]} 19...
Rfe8 {[%clk 0:01:10]} 20. Rac1 {[%clk 0:00:42.1]} 20... h5 {[%clk 0:00:54.8]}
21. h4 {[%clk 0:00:39]} 21... Rxe3 {[%clk 0:00:44.3]} 22. fxe3 {[%clk
0:00:37.2]} 22... Qxg3 {[%clk 0:00:44.6]} 23. Rf3 {[%clk 0:00:22.2]} 23... Qh2+
{[%clk 0:00:36.5]} 24. Kf1 {[%clk 0:00:22.5]} 24... Bg3 {[%clk 0:00:17.6]} 25.
Ba1 {[%clk 0:00:15.3]} 25... Ng4 {[%clk 0:00:16.8]} 26. Nd1 {[%clk 0:00:05.5]}
26... Ncxe3+ {[%clk 0:00:15.1]} 27. Nxe3 {[%clk 0:00:04.2]} 27... Rxc1+ {[%clk
0:00:15.4]} 28. Nd1 {[%clk 0:00:04.2]} 28... Be4 {[%clk 0:00:10.2]} 29. Bc3
{[%clk 0:00:02.5]} 29... Bxf3 {[%clk 0:00:08.5]} 30. Nxf3 {[%clk 0:00:01.4]}
30... Rxd1+ {[%clk 0:00:07.6]} 31. Qxd1 {[%clk 0:00:01.7]} 31... Ne3+ {[%clk
0:00:08.1]} 0-1

[Event "*** Titled Tuesday Blitz"]
[Site "Chess.com"]
[Date "2020.05.12"]
[Round "5"]
[White "Riazantsev"]
[Black "babyking1205"]
[Result "0-1"]
[WhiteElo "2652"]
[BlackElo "2488"]
[TimeControl "180+1"]
[EndTime "10:55:36 PDT"]
[Termination "babyking1205 won by resignation"]

1. d4 {[%clk 0:03:00.9]} 1... Nf6 {[%clk 0:02:59.3]} 2. c4 {[%clk 0:03:00.8]}
2... c5 {[%clk 0:02:59.4]} 3. d5 {[%clk 0:03:00.8]} 3... b5 {[%clk 0:02:59.9]}
4. cxb5 {[%clk 0:03:00.9]} 4... a6 {[%clk 0:03:00.5]} 5. bxa6 {[%clk 0:03:01.3]}
5... Bxa6 {[%clk 0:03:01.4]} 6. Nc3 {[%clk 0:03:01.2]} 6... d6 {[%clk
0:03:01.3]} 7. Nf3 {[%clk 0:03:01]} 7... g6 {[%clk 0:03:01.5]} 8. e4 {[%clk
0:03:01.1]} 8... Bxf1 {[%clk 0:03:00.9]} 9. Kxf1 {[%clk 0:03:01.3]} 9... Bg7
{[%clk 0:03:01.6]} 10. g3 {[%clk 0:03:01.8]} 10... O-O {[%clk 0:03:02.2]} 11.
Kg2 {[%clk 0:03:02.4]} 11... Qb6 {[%clk 0:03:02.9]} 12. Re1 {[%clk 0:03:01.5]}
12... Na6 {[%clk 0:03:02.8]} 13. Re2 {[%clk 0:03:00.2]} 13... Ng4 {[%clk
0:03:02.7]} 14. Bg5 {[%clk 0:02:57.9]} 14... h6 {[%clk 0:02:44]} 15. Bf4 {[%clk
0:02:40.5]} 15... g5 {[%clk 0:02:33.5]} 16. Bc1 {[%clk 0:02:39.1]} 16... Nc7
{[%clk 0:02:28.3]} 17. h4 {[%clk 0:02:37.4]} 17... f6 {[%clk 0:02:17.3]} 18. Qh1
{[%clk 0:02:33.7]} 18... Nb5 {[%clk 0:02:12.8]} 19. Qh3 {[%clk 0:02:28.9]} 19...
Nxc3 {[%clk 0:00:54.2]} 20. bxc3 {[%clk 0:02:28.2]} 20... Ne5 {[%clk 0:00:54.6]}
21. Qe6+ {[%clk 0:02:27]} 21... Nf7 {[%clk 0:00:50.4]} 22. hxg5 {[%clk
0:02:01.6]} 22... fxg5 {[%clk 0:00:50.3]} 23. e5 {[%clk 0:02:01.5]} 23... Qa6
{[%clk 0:00:43]} 24. exd6 {[%clk 0:01:54.4]} 24... exd6 {[%clk 0:00:42.6]} 25.
Bd2 {[%clk 0:01:47.2]} 25... Rae8 {[%clk 0:00:40.7]} 26. Qxe8 {[%clk 0:01:46.7]}
26... Rxe8 {[%clk 0:00:41.6]} 27. Rxe8+ {[%clk 0:01:47]} 27... Kh7 {[%clk
0:00:42.3]} 28. Re7 {[%clk 0:01:43.8]} 28... Kg6 {[%clk 0:00:41.8]} 29. Rae1
{[%clk 0:01:42.6]} 29... Qd3 {[%clk 0:00:39.3]} 30. R7e6+ {[%clk 0:01:19.1]}
30... Bf6 {[%clk 0:00:37.4]} 31. c4 {[%clk 0:01:15.1]} 31... Qxc4 {[%clk
0:00:29.2]} 32. R1e3 {[%clk 0:01:14.5]} 32... Qxd5 {[%clk 0:00:29]} 33. Bc3
{[%clk 0:01:14.8]} 33... Ne5 {[%clk 0:00:29.3]} 34. Rxf6+ {[%clk 0:00:43.6]}
34... Kxf6 {[%clk 0:00:28]} 35. Bxe5+ {[%clk 0:00:44.1]} 35... dxe5 {[%clk
0:00:28.9]} 36. Rxe5 {[%clk 0:00:44.5]} 36... Qc6 {[%clk 0:00:24.9]} 37. g4
{[%clk 0:00:43.5]} 37... h5 {[%clk 0:00:20.5]} 38. Kg3 {[%clk 0:00:41.6]} 38...
h4+ {[%clk 0:00:20.7]} 39. Kg2 {[%clk 0:00:42.1]} 39... h3+ {[%clk 0:00:13.6]}
40. Kg3 {[%clk 0:00:41.9]} 40... Qxf3+ {[%clk 0:00:10.8]} 41. Kxf3 {[%clk
0:00:40.8]} 41... Kxe5 {[%clk 0:00:11.7]} 42. a4 {[%clk 0:00:38.5]} 42... c4
{[%clk 0:00:08.7]} 43. a5 {[%clk 0:00:38.2]} 43... Kd6 {[%clk 0:00:09.4]} 44.
Kg3 {[%clk 0:00:37.9]} 44... c3 {[%clk 0:00:09.8]} 45. Kxh3 {[%clk 0:00:38.2]}
45... c2 {[%clk 0:00:10.4]} 0-1

[Event "*** Titled Tuesday Blitz"]
[Site "Chess.com"]
[Date "2020.05.12"]
[Round "5"]
[White "csati17"]
[Black "Oligan22"]
[Result "1-0"]
[WhiteElo "2537"]
[BlackElo "2391"]
[TimeControl "180+1"]
[EndTime "10:55:37 PDT"]
[Termination "csati17 won by resignation"]

1. c4 {[%clk 0:03:00.9]} 1... e5 {[%clk 0:02:58.5]} 2. g3 {[%clk 0:03:00.2]}
2... d6 {[%clk 0:02:58.4]} 3. Nc3 {[%clk 0:02:59.8]} 3... f5 {[%clk 0:02:59.1]}
4. d4 {[%clk 0:02:59.4]} 4... Nf6 {[%clk 0:02:59.7]} 5. dxe5 {[%clk 0:02:59]}
5... dxe5 {[%clk 0:02:58.9]} 6. Qxd8+ {[%clk 0:02:59.9]} 6... Kxd8 {[%clk
0:02:58.7]} 7. Nf3 {[%clk 0:03:00.8]} 7... Nc6 {[%clk 0:02:39.4]} 8. Bg5 {[%clk
0:03:00.1]} 8... Be6 {[%clk 0:02:33]} 9. O-O-O+ {[%clk 0:02:55.6]} 9... Kc8
{[%clk 0:02:30.3]} 10. Nd5 {[%clk 0:02:54.2]} 10... Ne4 {[%clk 0:02:17.4]} 11.
Be3 {[%clk 0:02:54.2]} 11... Bd6 {[%clk 0:02:12]} 12. Bh3 {[%clk 0:02:41.5]}
12... h6 {[%clk 0:02:05.1]} 13. Nh4 {[%clk 0:02:36.6]} 13... Rf8 {[%clk
0:02:01.7]} 14. Ng6 {[%clk 0:02:16]} 14... Re8 {[%clk 0:02:01.7]} 15. Bg2 {[%clk
0:01:56.2]} 15... Nc5 {[%clk 0:01:24.5]} 16. b4 {[%clk 0:01:40.6]} 16... Bxd5
{[%clk 0:01:22.1]} 17. Rxd5 {[%clk 0:01:26.4]} 17... Nxb4 {[%clk 0:01:16.6]} 18.
Rxc5 {[%clk 0:01:24.1]} 18... Bxc5 {[%clk 0:01:11]} 19. Bxc5 {[%clk 0:01:25]}
19... a5 {[%clk 0:00:58.1]} 20. Rd1 {[%clk 0:00:58.5]} 20... Nxa2+ {[%clk
0:00:42]} 21. Kb2 {[%clk 0:00:58.5]} 21... Nb4 {[%clk 0:00:42.1]} 22. Bh3 {[%clk
0:00:52.3]} 22... Ra6 {[%clk 0:00:38.1]} 23. Bxf5+ {[%clk 0:00:51.5]} 23... Kb8
{[%clk 0:00:38.7]} 24. Nxe5 {[%clk 0:00:50]} 24... b6 {[%clk 0:00:25.3]} 25.
Nd7+ {[%clk 0:00:47.5]} 25... Kb7 {[%clk 0:00:23.5]} 26. Be3 {[%clk 0:00:46.4]}
26... a4 {[%clk 0:00:20.3]} 27. Ra1 {[%clk 0:00:35.2]} 27... Ra5 {[%clk
0:00:18.4]} 28. Bh3 {[%clk 0:00:31.9]} 28... c5 {[%clk 0:00:15.8]} 29. Bg2+
{[%clk 0:00:20.6]} 29... Kc7 {[%clk 0:00:16]} 30. Ne5 {[%clk 0:00:20.5]} 30...
Rxe5 {[%clk 0:00:15.6]} 31. Bf4 {[%clk 0:00:20.6]} 31... Kd6 {[%clk 0:00:15.9]}
32. Rd1+ {[%clk 0:00:20.9]} 32... Ke6 {[%clk 0:00:16.3]} 33. Bh3+ {[%clk
0:00:21]} 33... Kf6 {[%clk 0:00:15.6]} 34. Rd6+ {[%clk 0:00:21.2]} 34... Ke7
{[%clk 0:00:13.9]} 35. Bxe5 {[%clk 0:00:21.6]} 35... a3+ {[%clk 0:00:14.8]} 36.
Kb3 {[%clk 0:00:21.4]} 36... a2 {[%clk 0:00:14.9]} 37. Rd7+ {[%clk 0:00:20.5]}
37... Ke8 {[%clk 0:00:14.1]} 38. Rd1 {[%clk 0:00:20.1]} 38... Nc6 {[%clk
0:00:07.7]} 39. Bd7+ {[%clk 0:00:18.3]} 39... Ke7 {[%clk 0:00:07.7]} 40. Bxc6
{[%clk 0:00:18.2]} 1-0

[Event "*** Titled Tuesday Blitz"]
[Site "Chess.com"]
[Date "2020.05.12"]
[Round "5"]
[White "Zmeeed63"]
[Black "ChronicUnhappiness"]
[Result "1-0"]
[WhiteElo "2191"]
[BlackElo "2327"]
[TimeControl "180+1"]
[EndTime "10:55:37 PDT"]
[Termination "Zmeeed63 won by checkmate"]

1. d4 {[%clk 0:03:00.4]} 1... Nf6 {[%clk 0:02:59]} 2. c4 {[%clk 0:03:00.8]} 2...
e6 {[%clk 0:02:58.6]} 3. Nc3 {[%clk 0:03:00.9]} 3... Bb4 {[%clk 0:02:58.4]} 4.
f3 {[%clk 0:03:00.5]} 4... c5 {[%clk 0:02:57.2]} 5. d5 {[%clk 0:02:59.7]} 5...
d6 {[%clk 0:02:56.8]} 6. e4 {[%clk 0:02:57.5]} 6... b5 {[%clk 0:02:54]} 7. Bg5
{[%clk 0:02:48]} 7... h6 {[%clk 0:02:44.6]} 8. Bh4 {[%clk 0:02:47.2]} 8... exd5
{[%clk 0:02:22.8]} 9. cxd5 {[%clk 0:02:46.2]} 9... a6 {[%clk 0:02:19.5]} 10. a3
{[%clk 0:02:45.5]} 10... Ba5 {[%clk 0:02:14.4]} 11. Ne2 {[%clk 0:02:35.7]} 11...
Nbd7 {[%clk 0:02:10.7]} 12. Bg3 {[%clk 0:02:22.4]} 12... Ne5 {[%clk 0:02:03.5]}
13. Qb1 {[%clk 0:02:22.1]} 13... O-O {[%clk 0:01:49.9]} 14. Bxe5 {[%clk
0:02:20.7]} 14... dxe5 {[%clk 0:01:49.2]} 15. b4 {[%clk 0:02:21.5]} 15... cxb4
{[%clk 0:01:46.8]} 16. axb4 {[%clk 0:02:22.4]} 16... Bb6 {[%clk 0:01:47]} 17.
Nxb5 {[%clk 0:02:20.5]} 17... Bd7 {[%clk 0:01:13.3]} 18. Nbc3 {[%clk 0:02:19.3]}
18... Qc7 {[%clk 0:01:11.1]} 19. Qd3 {[%clk 0:02:08.3]} 19... Rfc8 {[%clk
0:01:07.1]} 20. g4 {[%clk 0:02:04.4]} 20... Bb5 {[%clk 0:00:51]} 21. Nxb5 {[%clk
0:02:00.8]} 21... axb5 {[%clk 0:00:51.9]} 22. Rd1 {[%clk 0:01:50.1]} 22... Ra2
{[%clk 0:00:47.1]} 23. h4 {[%clk 0:01:48.4]} 23... Ba7 {[%clk 0:00:41]} 24. g5
{[%clk 0:01:45.5]} 24... Qb6 {[%clk 0:00:40]} 25. Rh2 {[%clk 0:01:46]} 25...
hxg5 {[%clk 0:00:30.2]} 26. hxg5 {[%clk 0:01:46.9]} 26... Ne8 {[%clk 0:00:30.7]}
27. g6 {[%clk 0:01:22.9]} 27... Nd6 {[%clk 0:00:28.1]} 28. gxf7+ {[%clk
0:01:22.7]} 28... Kxf7 {[%clk 0:00:27.6]} 29. f4 {[%clk 0:01:18.6]} 29... Nc4
{[%clk 0:00:23.9]} 30. d6 {[%clk 0:00:58.2]} 30... Ra3 {[%clk 0:00:16.1]} 31.
Qd5+ {[%clk 0:00:57.7]} 31... Kf6 {[%clk 0:00:12.9]} 32. fxe5+ {[%clk
0:00:50.7]} 32... Nxe5 {[%clk 0:00:12.8]} 33. Nd4 {[%clk 0:00:42.2]} 33... Re3+
{[%clk 0:00:06.7]} 34. Be2 {[%clk 0:00:40.3]} 34... Rcc3 {[%clk 0:00:07.6]} 35.
Qe6+ {[%clk 0:00:32.6]} 35... Kg5 {[%clk 0:00:05.5]} 36. Qf5# {[%clk 0:00:30.3]}
1-0

[Event "*** Titled Tuesday Blitz"]
[Site "Chess.com"]
[Date "2020.05.12"]
[Round "5"]
[White "AwesomeMango"]
[Black "Isajevsky_Anton"]
[Result "1-0"]
[WhiteElo "2246"]
[BlackElo "2384"]
[TimeControl "180+1"]
[EndTime "10:55:38 PDT"]
[Termination "AwesomeMango won by checkmate"]

1. e4 {[%clk 0:03:00.9]} 1... c5 {[%clk 0:02:59.6]} 2. Nf3 {[%clk 0:03:00.6]}
2... d6 {[%clk 0:02:59.5]} 3. Bb5+ {[%clk 0:03:00.3]} 3... Nd7 {[%clk
0:02:59.1]} 4. O-O {[%clk 0:02:59.6]} 4... a6 {[%clk 0:02:59.5]} 5. Bd3 {[%clk
0:02:59.2]} 5... b6 {[%clk 0:02:50.8]} 6. c3 {[%clk 0:02:54.7]} 6... Bb7 {[%clk
0:02:51.2]} 7. Bc2 {[%clk 0:02:54.1]} 7... Rc8 {[%clk 0:02:46.9]} 8. d4 {[%clk
0:02:52.6]} 8... Qc7 {[%clk 0:02:46.7]} 9. Bd3 {[%clk 0:02:36.4]} 9... Ngf6
{[%clk 0:02:44.9]} 10. Re1 {[%clk 0:02:35.5]} 10... e6 {[%clk 0:02:23.1]} 11. d5
{[%clk 0:02:10.7]} 11... e5 {[%clk 0:02:20.7]} 12. a4 {[%clk 0:02:04.5]} 12...
Be7 {[%clk 0:02:11.5]} 13. b3 {[%clk 0:01:55.8]} 13... O-O {[%clk 0:02:10.3]}
14. Nh4 {[%clk 0:01:48.5]} 14... g6 {[%clk 0:02:09.4]} 15. Nf3 {[%clk
0:01:39.5]} 15... Ne8 {[%clk 0:02:08.4]} 16. Bh6 {[%clk 0:01:35]} 16... Ng7
{[%clk 0:02:07.8]} 17. c4 {[%clk 0:01:28.9]} 17... Nf6 {[%clk 0:02:02.4]} 18. h3
{[%clk 0:01:21.1]} 18... Kh8 {[%clk 0:02:01.8]} 19. a5 {[%clk 0:01:15.5]} 19...
Ng8 {[%clk 0:01:49]} 20. axb6 {[%clk 0:01:06.8]} 20... Qxb6 {[%clk 0:01:46]} 21.
Bd2 {[%clk 0:01:04.5]} 21... f5 {[%clk 0:01:39.3]} 22. Ba5 {[%clk 0:00:58.6]}
22... Qa7 {[%clk 0:01:38.7]} 23. b4 {[%clk 0:00:57.9]} 23... cxb4 {[%clk
0:01:16.3]} 24. Bxb4 {[%clk 0:00:57.1]} 24... fxe4 {[%clk 0:01:14.9]} 25. Rxe4
{[%clk 0:00:50.1]} 25... Nf6 {[%clk 0:01:13.9]} 26. Re1 {[%clk 0:00:45.6]} 26...
e4 {[%clk 0:01:02.3]} 27. Nc3 {[%clk 0:00:34.2]} 27... exd3 {[%clk 0:00:32.7]}
28. Rxe7 {[%clk 0:00:33.8]} 28... Rxc4 {[%clk 0:00:33.1]} 29. Qb3 {[%clk
0:00:25.4]} 29... Rf4 {[%clk 0:00:22.8]} 30. Bxd6 {[%clk 0:00:21.2]} 30... Rxf3
{[%clk 0:00:22.2]} 31. gxf3 {[%clk 0:00:16.5]} 31... Qd4 {[%clk 0:00:21.1]} 32.
Qxb7 {[%clk 0:00:14.3]} 32... Qxc3 {[%clk 0:00:20.2]} 33. Rf1 {[%clk 0:00:12.8]}
33... d2 {[%clk 0:00:14.6]} 34. Rxg7 {[%clk 0:00:11.2]} 34... Qxf3 {[%clk
0:00:12]} 35. Bxf8 {[%clk 0:00:09.5]} 35... d1=Q {[%clk 0:00:10]} 36. Rxh7+
{[%clk 0:00:08.3]} 36... Kg8 {[%clk 0:00:09.6]} 37. Qg7# {[%clk 0:00:09.2]} 1-0

[Event "*** Titled Tuesday Blitz"]
[Site "Chess.com"]
[Date "2020.05.12"]
[Round "5"]
[White "XDPS"]
[Black "SlovenskiZmaj"]
[Result "1-0"]
[WhiteElo "2689"]
[BlackElo "2524"]
[TimeControl "180+1"]
[EndTime "10:55:39 PDT"]
[Termination "XDPS won by checkmate"]

1. d4 {[%clk 0:03:00.9]} 1... d6 {[%clk 0:02:59]} 2. e4 {[%clk 0:02:52.9]} 2...
Nf6 {[%clk 0:02:58.9]} 3. Nd2 {[%clk 0:02:52.5]} 3... e5 {[%clk 0:02:58.6]} 4.
c3 {[%clk 0:02:52.3]} 4... Nc6 {[%clk 0:02:30.1]} 5. Ngf3 {[%clk 0:02:47.5]}
5... g6 {[%clk 0:02:24.3]} 6. Bb5 {[%clk 0:01:58.9]} 6... Bd7 {[%clk 0:02:10.9]}
7. O-O {[%clk 0:01:48.8]} 7... Qe7 {[%clk 0:01:57.1]} 8. Re1 {[%clk 0:01:36]}
8... Bg7 {[%clk 0:01:56.6]} 9. Nc4 {[%clk 0:01:34.4]} 9... Nh5 {[%clk
0:01:52.4]} 10. Ne3 {[%clk 0:01:28.7]} 10... O-O {[%clk 0:01:44.6]} 11. Nd5
{[%clk 0:01:24.3]} 11... Qd8 {[%clk 0:01:45]} 12. Bg5 {[%clk 0:01:11.8]} 12...
f6 {[%clk 0:01:44.7]} 13. Be3 {[%clk 0:01:12.3]} 13... Kh8 {[%clk 0:01:18.3]}
14. h3 {[%clk 0:01:12]} 14... a6 {[%clk 0:01:13.8]} 15. Bf1 {[%clk 0:01:10.3]}
15... Ne7 {[%clk 0:01:06.2]} 16. dxe5 {[%clk 0:01:06.9]} 16... Nxd5 {[%clk
0:00:58.3]} 17. Qxd5 {[%clk 0:00:58.9]} 17... Bc6 {[%clk 0:00:41.9]} 18. Qc4
{[%clk 0:00:59.3]} 18... fxe5 {[%clk 0:00:35.4]} 19. Ng5 {[%clk 0:00:47.2]}
19... Qe7 {[%clk 0:00:31]} 20. Ne6 {[%clk 0:00:40.6]} 20... Rfe8 {[%clk
0:00:25.6]} 21. Nxg7 {[%clk 0:00:39.7]} 21... Qxg7 {[%clk 0:00:26.3]} 22. g3
{[%clk 0:00:33.7]} 22... Bb5 {[%clk 0:00:22.5]} 23. Qb3 {[%clk 0:00:31.9]} 23...
Bxf1 {[%clk 0:00:22]} 24. Rxf1 {[%clk 0:00:32.8]} 24... b6 {[%clk 0:00:18.4]}
25. Qd5 {[%clk 0:00:32.3]} 25... Qd7 {[%clk 0:00:17.6]} 26. Bh6 {[%clk
0:00:25.8]} 26... Qxh3 {[%clk 0:00:12.6]} 27. Bg5 {[%clk 0:00:21.4]} 27... Qd7
{[%clk 0:00:12.1]} 28. Kg2 {[%clk 0:00:19.8]} 28... c6 {[%clk 0:00:11.8]} 29.
Qd2 {[%clk 0:00:19.3]} 29... Kg8 {[%clk 0:00:11.3]} 30. Rh1 {[%clk 0:00:19.6]}
30... Rf8 {[%clk 0:00:10.3]} 31. f3 {[%clk 0:00:20]} 31... Rf7 {[%clk 0:00:10]}
32. Raf1 {[%clk 0:00:20.3]} 32... Re8 {[%clk 0:00:09.7]} 33. Qe3 {[%clk
0:00:20.9]} 33... d5 {[%clk 0:00:09.8]} 34. Rd1 {[%clk 0:00:20.6]} 34... Ref8
{[%clk 0:00:07.2]} 35. Rhf1 {[%clk 0:00:20.3]} 35... Qe6 {[%clk 0:00:07.1]} 36.
Bh6 {[%clk 0:00:20.5]} 36... Re8 {[%clk 0:00:07.3]} 37. Qxb6 {[%clk 0:00:20.5]}
37... dxe4 {[%clk 0:00:07]} 38. fxe4 {[%clk 0:00:20.3]} 38... Rxf1 {[%clk
0:00:07.8]} 39. Rxf1 {[%clk 0:00:20]} 39... Qg4 {[%clk 0:00:08.4]} 40. Qe3
{[%clk 0:00:18.6]} 40... Re6 {[%clk 0:00:06.5]} 41. Rf8# {[%clk 0:00:18.2]} 1-0